Cogmind - Beta 13 @@@ ROGUE MODE // 2024.05.04 @ 19:19:55 Player: Fazzonamite Result: Destroyed by G-47 Trooper with Particle Gun Performance ------------- Evolutions (2) 1000 Regions Visited (5) 1000 Robots Destroyed (27) 135 Value Destroyed (724) 724 Prototype IDs (0) 0 Alien Tech Used (0) 0 Bonus (0) 0 TOTAL SCORE: 2859 Bonus ------- None Cogmind --------- Core Integrity 0/550 Matter 245/300 Energy 100/100 System Corruption 0% Temperature Cool (9) Movement Core (350) Ox6 Location -8/Materials Parts ------- > --- POWER (1) -------- (None) > --- PROPULSION (3) --- (None) > --- UTILITY (4) ------ Large Storage Unit > --- WEAPON (3) ------- (None) > --- INVENTORY (15) --- Light Nuclear Core Heat Sink Small Storage Unit Compact Matter Pod (150) Sensor Array Heavy Armor Plating Peak State ------------ > --- POWER ------------ Light Nuclear Core > --- PROPULSION ------- Armored Huge Wheel > --- UTILITY ---------- Large Storage Unit Visual Processing Unit Heavy Armor Plating > --- WEAPON ----------- Light Assault Rifle Light Assault Rifle Heavy Assault Rifle > --- INVENTORY -------- Light Nuclear Core Armored Huge Wheel Heat Sink Small Storage Unit Compact Matter Pod Sensor Array Heavy Armor Plating Heavy Armor Plating Grenade Launcher Remote Datajack Plasma Cutter [Rating: 27] Favorites ----------- Power Light Nuclear Core Engine Light Ion Engine Power Core Light Nuclear Core Propulsion Wheel Treads Light Treads Wheel Wheel Utility Large Storage Unit Storage Large Storage Unit Processor Visual Processing Unit Protection Heavy Armor Plating Weapon Light Assault Rifle Energy Gun Particle Gun Ballistic Gun Light Assault Rifle Launcher Grenade Launcher Special Weapon Remote Datajack Build | -11 -10 -10 -9 -9 -8 ------- Run | Yrd Mat Min Mat Min Mat Slots Evolved 4 | . . . 2 . 2 Power . | . . . . . . Propulsion 1 | . . . . . 1 Utility 2 | . . . 2 . . Weapon 1 | . . . . . 1 Parts Attached 28 | 5 9 1 2 3 8 Power 6 | 1 3 . 1 . 1 Engine 4 | 1 3 . . . . Core 2 | . . . 1 . 1 Reactor . | . . . . . . Propulsion 8 | 2 3 . . 2 1 Treads 1 | . . . . 1 . Leg . | . . . . . . Wheel 7 | 2 3 . . 1 1 Hover . | . . . . . . Flight . | . . . . . . Utility 4 | . 2 . 1 . 1 Device . | . . . . . . Storage 1 | . 1 . . . . Processor 1 | . 1 . . . . Hackware . | . . . . . . Protection 2 | . . . 1 . 1 Artifact . | . . . . . . Weapon 10 | 2 1 1 . 1 5 Energy Gun 1 | . . . . . 1 Energy Cannon . | . . . . . . Ballistic Gun 6 | 2 1 1 . 1 1 Ballistic Cannon . | . . . . . . Launcher 1 | . . . . . 1 Special Weapon 2 | . . . . . 2 Impact Weapon . | . . . . . . Slashing Weapon . | . . . . . . Piercing Weapon . | . . . . . . Special Melee Weapon . | . . . . . . Unidentified Prototypes . | . . . . . . Parts Lost 20 | . 3 2 . 1 14 Power 3 | . 1 . . . 2 Propulsion 6 | . 2 1 . 1 2 Utility 3 | . . . . . 3 Weapon 8 | . . 1 . . 7 Highest Loss Streak 10 | . 2 1 . 1 10 To Critical Strikes . | . . . . . . Average Slot Usage (%) 77 | . 82 98 76 76 59 Engine 6 | . 13 14 1 . . Core 5 | . . . 9 11 7 Treads 1 | . . . . 6 . Wheel 15 | . 26 26 11 3 8 Storage 11 | . 11 14 11 11 9 Processor 7 | . 1 14 11 11 9 Protection 5 | . . . 10 11 6 Ballistic Gun 23 | . 28 28 22 22 16 Naked Turns . | . . . . . . Heaviest Build 46 | 6 28 28 42 42 46 Greatest Support 28 | 20 26 26 16 28 28 Greatest Overweight (x) 13 | . 1 1 2 13 7 Average Overweight (x) 1 | . . . 1 1 . Largest Inventory Capacity 15 | 5 15 15 15 15 15 Average Capacity 14 | 5 13 15 15 15 15 Most Carried 15 | 5 8 8 13 15 15 Average Carried 9 | 2 5 7 11 12 12 Final Capacity 15 | 5 15 15 15 15 15 Final Carried 15 | 2 8 7 13 15 7 Class Distribution -------------------- 87% | Mutant 8% | Tank 4% | Scavenger-Mutant Dominant Class ---------------- Mutant | -10/Materials Mutant | -10/Mines Mutant | -9/Materials Mutant | -9/Mines Mutant | -8/Materials Resources | -11 -10 -10 -9 -9 -8 ----------- Run | Yrd Mat Min Mat Min Mat Matter Collected 862 | 250 262 59 44 105 142 Remotely . | . . . . . . Salvage Created 773 | . 368 45 44 . 316 Parts 57 | . 32 1 7 . 17 Haulers Intercepted . | . . . . . . Recyclers Shooed . | . . . . . . Parts Field Recycled . | . . . . . . Retrieved Matter . | . . . . . . Parts Self-Destructed . | . . . . . . Prevented . | . . . . . . Kills | -11 -10 -10 -9 -9 -8 ------- Run | Yrd Mat Min Mat Min Mat Combat Hostiles Destroyed 25 | . 11 1 3 . 10 Guns 21 | . 11 1 3 . 6 AOE 4 | . . . . . 4 Classes Destroyed 4 | . 4 . . . . Recycler 1 | . 1 . . . . Watcher 1 | . 1 . . . . Swarmer 12 | . 6 . 3 . 3 Grunt 13 | . 5 1 . . 7 Best Kill Streak 7 | . 3 1 3 . 7 Combat Bots Only 7 | . 3 1 3 . 7 Max Kills in Single Turn 2 | . 1 1 1 . 2 Gunslinging . | . . . . . . Exploded 2 | . . . . . 2 Melee . | . . . . . . Uniques/NPCs Destroyed . | . . . . . . Combat | -11 -10 -10 -9 -9 -8 -------- Run | Yrd Mat Min Mat Min Mat Hostile Shots Fired 330 | . 68 13 22 16 211 Missed 85 | . 18 1 3 4 59 Damage Taken 3226 | . 519 179 167 174 2187 Core 697 | . 90 31 7 15 554 Absorbed by Shields . | . . . . . . Core Remaining (%) 81 | 100 . 51 . 94 . Volleys Fired 114 | . 48 11 13 4 38 Largest 3 | . 2 2 2 2 3 Hottest 65 | . 40 40 40 40 65 Shots Fired 224 | . 96 22 26 8 72 Gun 217 | . 96 22 26 8 65 Cannon . | . . . . . . Launcher 6 | . . . . . 6 Special 1 | . . . . . 1 Kinetic 208 | . 96 22 26 8 56 Thermal 9 | . . . . . 9 Explosive 6 | . . . . . 6 Electromagnetic . | . . . . . . Robot Hit Streak 11 | . 8 7 2 4 11 Robot Miss Streak 4 | . 3 2 4 1 2 Penetration Max . | . . . . . . Secondary Targets 2 | . . . 1 . 1 Max Gunslinging Chain 1 | . . . 1 . 1 Shots Hit Robots 135 | . 58 17 9 6 45 Core Hits 58 | . 20 5 5 2 26 Critical Kills . | . . . . . . Critical Parts Destroyed . | . . . . . . Critical Strikes . | . . . . . . Melee Attacks . | . . . . . . Impact . | . . . . . . Slashing . | . . . . . . Piercing . | . . . . . . Sneak Attacks . | . . . . . . Combat Hostiles . | . . . . . . Follow-up Attacks . | . . . . . . Damage Inflicted 1825 | . 657 153 69 48 898 Guns 1447 | . 657 153 69 48 520 Cannons . | . . . . . . Explosions 370 | . . . . . 370 Melee . | . . . . . . Ramming 8 | . . . . . 8 Kinetic 1350 | . 657 153 69 48 423 Thermal 97 | . . . . . 97 Explosive 289 | . . . . . 289 Electromagnetic 81 | . . . . . 81 Impact . | . . . . . . Slashing . | . . . . . . Piercing . | . . . . . . Highest Corruption . | . . . . . . Average Corruption . | . . . . . . Corruption Purged . | . . . . . . Corruption Blocked . | . . . . . . Overload Shots . | . . . . . . Overflow Damage . | . . . . . . Projectiles . | . . . . . . Explosions . | . . . . . . Melee . | . . . . . . Knockbacks . | . . . . . . Impact . | . . . . . . Kinetic . | . . . . . . Secondary . | . . . . . . Self-Inflicted Damage 50 | . . . . . 50 Shots 4 | . . . . . 4 Rammed 1 | . . . . . 1 Targets Rammed 1 | . . . . . 1 Kicked . | . . . . . . Crushed . | . . . . . . Highest Temperature 122 | . 18 18 30 87 122 Average Temperature 25 | . 7 10 14 57 31 Received Heat Transfer 1185 | . 189 105 9 81 801 Siege Activations . | . . . . . . Robots Corrupted . | . . . . . . Combat Hostiles . | . . . . . . Parts Fried . | . . . . . . Impact Corruptions . | . . . . . . Robots Melted . | . . . . . . Combat Hostiles . | . . . . . . Parts Melted . | . . . . . . Heat Transferred 222 | . . . . . 222 Parts Sabotaged . | . . . . . . Parts Stolen . | . . . . . . Parts Stripped . | . . . . . . Power Chain Reactions 1 | . . . . . 1 Alert | -11 -10 -10 -9 -9 -8 ------- Run | Yrd Mat Min Mat Min Mat Peak Influence 339 | . 287 67 96 52 339 Initial 42 | . . 42 26 37 16 Average 90 | . 137 42 50 41 137 Maximum Alert Level 1 | . 1 . . . 1 Low Security (%) 85 | 100 80 100 100 100 59 Level 1 14 | . 19 . . . 40 Level 2 . | . . . . . . Level 3 . | . . . . . . Level 4 . | . . . . . . Level 5 . | . . . . . . High Security . | . . . . . . Max Security . | . . . . . . Squads Dispatched 6 | . 1 . . 1 4 Investigation 3 | . 1 . . 1 1 Extermination . | . . . . . . Reinforcement 3 | . . . . . 3 Assault . | . . . . . . Garrison . | . . . . . . Intercept . | . . . . . . Searches Triggered . | . . . . . . Construction Impeded . | . . . . . . Haulers Reinforced . | . . . . . . Active Scanning Responses . | . . . . . . Cargo Convoy Interrupts . | . . . . . . Stealth | -11 -10 -10 -9 -9 -8 --------- Run | Yrd Mat Min Mat Min Mat Distress Signals 3 | . 1 . . . 2 Communications Jammed . | . . . . . . Distress Signals . | . . . . . . Times Spotted 50 | . 15 2 6 2 25 Peak Tracking Total 9 | . 4 2 3 2 9 Tactical Retreats 3 | . . 1 . . 2 Traps | -11 -10 -10 -9 -9 -8 ------- Run | Yrd Mat Min Mat Min Mat Traps Triggered 2 | . 1 . . . 1 Indirectly . | . . . . . . Trap Hack Attempts . | . . . . . . Triggered . | . . . . . . Disarmed . | . . . . . . Reprogrammed . | . . . . . . Reused . | . . . . . . Traps Extracted . | . . . . . . Installed . | . . . . . . Triggered . | . . . . . . Machines | -11 -10 -10 -9 -9 -8 ---------- Run | Yrd Mat Min Mat Min Mat Machines Disabled 2 | . . . . . 2 Max in Single Turn 2 | . . . . . 2 Machines Repaired . | . . . . . . Machines Dismantled . | . . . . . . Machines Sabotaged . | . . . . . . Overloaded Fab Kills . | . . . . . . Hacking | -11 -10 -10 -9 -9 -8 --------- Run | Yrd Mat Min Mat Min Mat Machines Accessed 3 | . 1 . 1 1 . Terminals 2 | . 1 . 1 . . Fabricators . | . . . . . . Repair Stations . | . . . . . . Recycling Units . | . . . . . . Scanalyzers . | . . . . . . Garrison Access . | . . . . . . Total Hacks 6 | . 4 . 1 1 . Successful 3 | . 2 . . 1 . Failed 3 | . 2 . 1 . . Catastrophic 1 | . 1 . . . . Database Lockouts . | . . . . . . Manual . | . . . . . . Terminals 5 | . 4 . 1 . . Fabricators . | . . . . . . Repair Stations . | . . . . . . Recycling Units . | . . . . . . Scanalyzers . | . . . . . . Garrison Access . | . . . . . . Terminal Hacks 3 | . 2 . . 1 . Open Door 1 | . . . . 1 . Branch Access Points 1 | . 1 . . . . Zone Layout 1 | . 1 . . . . Fabricator Hacks . | . . . . . . Repair Station Hacks . | . . . . . . Recycling Unit Hacks . | . . . . . . Scanalyzer . | . . . . . . Garrison Access Hacks . | . . . . . . Unauthorized Hacks . | . . . . . . Terminals . | . . . . . . Fabricators . | . . . . . . Repair Stations . | . . . . . . Recycling Units . | . . . . . . Scanalyzers . | . . . . . . Garrison Access . | . . . . . . Data Cores Recovered . | . . . . . . Used . | . . . . . . Hacking Detections 2 | . 1 . 1 . . Full Trace Events . | . . . . . . Feedback Events . | . . . . . . Feedback Blocked . | . . . . . . Robot Schematics Acquired . | . . . . . . Robots Built . | . . . . . . Authchips . | . . . . . . Time . | . . . . . . Total Robot Build Rating . | . . . . . . Part Schematics Acquired . | . . . . . . Parts Built . | . . . . . . Authchips . | . . . . . . Time . | . . . . . . Total Part Build Rating . | . . . . . . Parts Repaired . | . . . . . . Time . | . . . . . . Parts Recycled . | . . . . . . Recycled Matter . | . . . . . . Retrieved Matter . | . . . . . . Retrieved Components . | . . . . . . Parts Scanalyzed . | . . . . . . Part Schematics Acquired . | . . . . . . Parts Damaged . | . . . . . . Bothacking | -11 -10 -10 -9 -9 -8 ------------ Run | Yrd Mat Min Mat Min Mat Used RIF Installer . | . . . . . . Robots Hacked 1 | . . . . . 1 Non-combat . | . . . . . . Combat 1 | . . . . . 1 Robot Hacks Applied 1 | . . . . . 1 parse_system 1 | . . . . . 1 Relay Couplers Released . | . . . . . . Fabnet Peak Effective % . | . . . . . . Robots Rewired . | . . . . . . Allies Hacked . | . . . . . . Hacks Repelled . | . . . . . . Allies | -11 -10 -10 -9 -9 -8 -------- Run | Yrd Mat Min Mat Min Mat Total Allies . | . . . . . . Largest Group . | . . . . . . Highest-Rated Group . | . . . . . . Highest-Rated Ally . | . . . . . . Total Orders . | . . . . . . Ally Attacks . | . . . . . . Total Damage . | . . . . . . Kills . | . . . . . . Allies Corrupted . | . . . . . . Allies Melted . | . . . . . . Intel | -11 -10 -10 -9 -9 -8 ------- Run | Yrd Mat Min Mat Min Mat Robot Analysis Total . | . . . . . . Derelict Logs Recovered 2 | . . 1 . 1 . Drone Launches . | . . . . . . Drone Recoveries . | . . . . . . Exploration | -11 -10 -10 -9 -9 -8 ------------- Run | Yrd Mat Min Mat Min Mat Turns Passed 1588 | 34 486 205 173 363 327 Spaces Moved 883 | 32 288 153 100 155 155 Core 15 | 10 . . . 3 2 Treads 67 | . . . . 67 . Legs . | . . . . . . Wheels 801 | 22 288 153 100 85 153 Hover . | . . . . . . Flight . | . . . . . . Fastest Speed 50 | 50 80 90 115 115 100 Average Speed 125 | 70 94 106 129 218 117 Slowest Speed 700 | 80 115 115 130 700 400 Overloaded Moves . | . . . . . . Propulsion Burnouts . | . . . . . . Robots Hopped . | . . . . . . Cave-ins Triggered . | . . . . . . Exploration Rate (%) 29 | 3 40 52 14 36 32 Regions Visited 5 Branch Regions 2 Pre-discovered Areas 1 | . . . . 1 . Known Exits Taken 1 | . 1 . . . . Unknown Exits Taken 4 | 1 . 1 1 1 . Scrap Searched 2 | . . 1 . 1 . Spaces Dug . | . . . . . . Terrain Destroyed 27 | . . . . . 27 Melee . | . . . . . . Projectile . | . . . . . . AOE 27 | . . . . . 27 Terrain Rammed . | . . . . . . Walls Destroyed . | . . . . . . Machines Disabled . | . . . . . . Actions | -11 -10 -10 -9 -9 -8 --------- Run | Yrd Mat Min Mat Min Mat Total 1170 | 43 414 178 123 173 239 Wait 103 | . 51 14 . 3 35 Move 878 | 31 287 152 99 154 155 Hop . | . . . . . . Pick Up 36 | 7 15 . 7 5 2 Fast Attach 1 | . . . . 1 . Attach 21 | 5 5 1 1 1 8 Detach . | . . . . . . Swap 6 | . 4 . 1 1 . Drop 10 | . 4 . 2 4 . Fire 114 | . 48 11 13 4 38 Melee . | . . . . . . Ram 1 | . . . . . 1 Kick . | . . . . . . Crush . | . . . . . . Escape Stasis . | . . . . . . Rewire . | . . . . . . Trap . | . . . . . . Miscellaneous . | . . . . . . Route ------- -11/Scrapyard -10/Materials (discovered 2 exits: *Min x2) -10/Mines -9/Materials -9/Mines -8/Materials History --------- Turn | Location | Event 2 | -11/Scrapyard | Met Revision 17 26 | -11/Scrapyard | Discovered new exit (range 12) 35 | -11/Scrapyard | Entered Materials 75 | -10/Materials | Identified exit to Mines 318 | -10/Materials | Build established: Mutant 521 | -10/Materials | Entered Mines 627 | -10/Mines | Learned Materials interactive machine intel 664 | -10/Mines | Discovered new exit (range 15) 726 | -10/Mines | Entered Materials 726 | -9/Materials | Evolved 2 slots: Utility x2 727 | -9/Materials | Loaded intel: 18 interactive machine locations 860 | -9/Materials | Discovered new exit (range 10) 899 | -9/Materials | Entered Mines 908 | -9/Mines | Met a Derelict bent on vengeance 1178 | -9/Mines | Met a Derelict shopkeep closing up shop 1246 | -9/Mines | Discovered new exit (range 7) 1252 | -9/Mines | Learned location of Zion (-7) 1262 | -9/Mines | Entered Materials 1262 | -8/Materials | Evolved 2 slots: Propulsion x1, Weapon x1 1427 | -8/Materials | Lost 3 parts (1p1u1w) 1479 | -8/Materials | Destroyed 7 combat bots 1566 | -8/Materials | Core integrity fell below 50% 1579 | -8/Materials | Core integrity fell below 20% 1589 | -8/Materials | Destroyed by G-47 Trooper with Particle Gun Last Messages --------------- 01537_ Lgt. Nuclear Core destroyed. 01539_ G-47 Trooper destroyed. 01543_ K-01 Serf collects debris. 01545_ Critical hit (Burn: +37). 01554_ Arm. Huge Wheel destroyed. 01557_ U-05 Engineer builds a Wall. 01557_ U-05 Engineer lays Concrete. 01559_ Plasma Cutter destroyed. 01561_ U-05 Engineer lays Concrete. 01564_ Slammed into G-47 Trooper. 01565_ Jacked Y-45 Defender... >>parse_system Reading system data... 01565_ U-05 Engineer lays Concrete. 01567_ Particle Gun destroyed. 01571_ Critical hit (Burn: +37). 01571_ Y-45 Defender destroyed. 01577_ Remote Datajack destroyed. 01586_ Arm. Huge Wheel destroyed. 01587_ Visual Processing Unit destroyed. Map ----- +----------------------------------------------------+ | ?????????????????????????????????????????????????? | | ?????????????????????????????????????????????????? | | ?????????????????????????????????????????????????? | | ?????????????????????????????????????????????????? | | ?????????????????????????????????????????????????? | | ?????????????????????????????????????????????????? | | ?????????????????????????????????????????????????? | | ?????????????????????????????????????????????????? | | ?????????????????????????????????????????????????? | | ?????????????????????????????????????????????????? | | ?????????????????????????????????????????????????? | | ?????????????????????????????????????????????????? | | ?????????????????????????????????????????????????? | | ?????????????????????????????????????????????????? | | ?????????????????????????????????????????????????? | | ?????????????????????????????????????????????????? | | ?????????????????????????????????????????????????? | | ????????????????????????????????#+#??????????????? | | ?????????????????????############ #?????####?????? | | ?????????????????????#! ! # #####? ?????? | | ?????????????????????# ] # # """ ???? | | ?????????????????????# w + """ ?? | | ?????????????????????# """ """ # # """ ?? | | ?????????????????????# """ """ # ???? | | ?????????????????????# """x""" # """ "???? | | ?????????????????????# g@%x=% # % """ """?? | | ?????????????????????# """ """ + =%[ """ """ ? | | ?????????????????????# """ """ # = # | | ?????????????????????# """ """ # """ "???? | | ?????????????????????# !# """ "???? | | ?????????????????????# """ """ # # """ "???? | | ?????????????????????# """ """ # #?? ???? | | ?????????????????????# """ """ /# ##########?? | | ?????????????????????# # #?? | | ?????????????????????############ #?? | | ??????????????????????? #?? | | ?????????????????????????###+### #?? | | ????????????????????????# + #?? | | ????????????????????????# #### #### #?? | | ????????????????????????# ???# #??# #?? | | ????????????????????????# ????# #??# #?? | | ????????????????????????# ????#+#+#??# #?? | | ????????????????????????# ????????????# #?? | | ????????????????????????#####????????????# ##? | | ?????????????????????????????????????????# #? | | ?????????????????????????????????????????# #? | | ??????????????????????????????????????? + #? | | ???????????????????????????????????? """ # #? | | ?????????????????????????????????? """ # #? | | ??????????????????????????????????!? """?# ##? | +----------------------------------------------------+ Best States ------------- Heat Dissipation 31 Energy Generation 14 Energy Capacity 250 Matter Stores 300 Matter Capacity 300 Sight Range 18 Terrain Scan Density 10 Armor Coverage 600 Evasion (%) 50 Recoil Reduction 1 Item Schematics ----------------- None Robot Schematics ------------------ None Fabricated ------------ Nothing Alien Tech Used ----------------- None Achievements -------------- None Challenges ------------ None Game ------ Seed PhaseZhirovGenerator Manual? 0 Play Time 00:25:41 Cumulative 89.9 hours Start 2024.05.04 @ 18:55:07 End 2024.05.04 @ 19:19:55 Sessions 1 Manual Loads 0 Difficulty Rogue Special Mode None Game No. 74 Rogue 74 Adventurer 0 Explorer 0 Win Type - Total 0 Types 0/0/0/0/0/0/0/0/0 Lore% 47 Gallery% 48 Achievement% 37 Wizard Run 0 Options --------- Layout 2 ASCII 0 Keyboard 0 Movement Mouse Keybinds 0 Fullscreen 1 Font 48/Smallcaps Map View 50x44 Zoom Use 0% Tactical HUD 1 Map Filters NONE Filters NONE Steam 1 RUN: 1a3fe115-9f75-439f-8d05-8bc155935a96